bitfinex/quotes_BTCUSD_20240828
["timestamp","ask_amount","ask_price","bid_price","bid_amount"]
[1724839416048,0.50809499,60096.0,60095.0,0.012009]
[1724839416248,0.84089499,60096.0,60095.0,0.012009]
[1724839416458,0.50809499,60096.0,60095.0,0.012009]
[1724839417026,0.50909499,60096.0,60095.0,0.019009]
[1724839418073,0.17629499,60096.0,60095.0,0.019009]
[1724839418430,0.59328109,60096.0,60095.0,0.019009]
[1724839418637,0.50909499,60096.0,60095.0,0.019009]
[1724839418857,0.17629499,60096.0,60095.0,0.019009]
[1724839419067,0.00989499,60096.0,60095.0,0.518218]
[1724839419281,0.00989499,60096.0,60095.0,0.584612]
[1724839419282,0.002,60096.0,60095.0,0.584612]
[1724839419520,0.002,60096.0,60095.0,1.250224]
[1724839420440,0.002,60096.0,60095.0,0.917418]
[1724839421286,0.002,60096.0,60095.0,1.250224]
[1724839421439,0.002,60096.0,60095.0,0.185412]
[1724839421615,0.002,60096.0,60095.0,0.518218]
[1724839421843,0.00179978,60096.0,60095.0,0.185412]
[1724839423209,0.00179978,60096.0,60095.0,0.019009]
[1724839423437,0.17601375,60096.0,60095.0,0.019009]
[1724839423638,0.00961375,60096.0,60095.0,0.019009]
[1724839424054,0.17601375,60096.0,60095.0,0.019009]
[1724839424283,0.61538273,60096.0,60095.0,0.019009]
[1724839424488,0.94818273,60096.0,60095.0,0.019009]
[1724839424712,0.84161375,60096.0,60095.0,0.019009]
[1724839424927,0.50881375,60096.0,60095.0,0.019009]
[1724839425131,0.84161375,60096.0,60095.0,0.019009]
[1724839425281,1.17441375,60096.0,60095.0,0.019009]
[1724839425534,1.56861375,60096.0,60095.0,0.019009]
[1724839425708,1.56761375,60096.0,60095.0,0.012009]
[1724839426200,1.56681397,60096.0,60095.0,0.009009]
[1724839426402,1.57581397,60096.0,60095.0,0.009009]
[1724839426576,1.24301397,60096.0,60095.0,0.009009]
[1724839426836,1.23401397,60096.0,60095.0,0.009009]
[1724839427054,0.90121397,60096.0,60095.0,0.010009]
[1724839427496,1.56681397,60096.0,60095.0,0.010009]
[1724839427726,1.23357986,60096.0,60095.0,0.009009]
[1724839427931,1.57337986,60096.0,60095.0,0.010009]
[1724839428118,1.24057986,60096.0,60095.0,0.010009]
[1724839428372,1.58237986,60096.0,60095.0,0.010009]
[1724839429008,1.58237986,60096.0,60091.0,0.0004]
[1724839429009,1.16488,60092.0,60091.0,0.0004]
[1724839429257,2.172203,60092.0,60091.0,0.0004]
[1724839429718,2.17958286,60092.0,60091.0,0.0004]
[1724839430150,0.832167,60084.0,60083.0,0.009009]
[1724839430382,0.499366,60076.0,60075.0,0.009009]
[1724839430592,0.832277,60076.0,60075.0,0.009009]
[1724839430805,0.832277,60076.0,60072.0,0.00012]
[1724839430806,0.83232,60073.0,60072.0,0.00012]
[1724839431007,1.165248,60073.0,60072.0,0.00012]
[1724839431448,1.17236414,60073.0,60072.0,0.00012]
[1724839432074,1.56476414,60073.0,60072.0,0.00012]
[1724839432296,0.90890814,60073.0,60072.0,0.00012]
[1724839432712,1.24183614,60073.0,60072.0,0.00012]
[1724839432912,1.23183614,60073.0,60072.0,0.00012]
[1724839433064,1.56476414,60073.0,60072.0,0.00012]
[1724839433288,1.56476414,60073.0,60051.0,0.0004]
[1724839433289,0.166522,60052.0,60051.0,0.0004]
[1724839433745,0.333022,60057.0,60051.0,0.0004]
[1724839433746,0.16652,60053.0,60051.0,0.0004]
[1724839434068,0.17363814,60052.0,60051.0,0.0004]
[1724839434534,0.00711614,60052.0,60051.0,0.166925]
[1724839434748,0.00711614,60052.0,60051.0,0.857775]
[1724839434956,0.00711614,60052.0,60051.0,1.190825]
[1724839434957,0.001,60052.0,60051.0,1.190825]
[1724839435165,0.001,60052.0,60051.0,0.0013009]
[1724839435360,0.166522,60052.0,60051.0,0.0013009]
[1724839435535,0.500566,60052.0,60051.0,0.0013009]
[1724839435917,0.17463814,60052.0,60051.0,0.0013009]
[1724839436123,0.50868214,60052.0,60051.0,0.0013009]
[1724839436331,0.84172614,60052.0,60051.0,0.0013009]
[1724839436553,0.84072614,60052.0,60051.0,0.0013009]
[1724839436764,1.44562614,60052.0,60051.0,0.0013009]
[1724839436938,1.44062614,60052.0,60051.0,0.0013009]
[1724839437171,1.43962614,60052.0,60051.0,0.0013009]
[1724839437363,1.77267014,60052.0,60051.0,0.0013009]
[1724839437804,1.44262614,60052.0,60051.0,0.0013009]
[1724839438227,1.78267014,60052.0,60051.0,0.0013009]
[1724839438466,1.46162614,60052.0,60051.0,0.0013009]
[1724839438669,1.44962614,60052.0,60051.0,0.0013009]
[1724839438867,1.43962614,60052.0,60051.0,0.0013009]
[1724839438980,1.78467014,60052.0,60051.0,0.0013009]
[1724839439185,1.81078466,60052.0,60051.0,0.0013009]
[1724839439383,1.78467014,60052.0,60051.0,0.0013009]
[1724839439619,1.79667014,60052.0,60051.0,0.0013009]
[1724839440251,1.46362614,60052.0,60051.0,0.0013009]
[1724839440662,1.13058214,60052.0,60051.0,0.0013009]
[1724839440941,1.14058214,60052.0,60051.0,0.0013009]
[1724839441127,0.04111614,60052.0,60051.0,0.0013009]
[1724839441352,0.04111614,60052.0,60051.0,0.8339259]
[1724839441571,0.04111614,60052.0,60051.0,0.1678259]
[1724839441775,0.034,60052.0,60051.0,0.8339259]
[1724839442015,0.034,60052.0,60051.0,1.1669759]
[1724839442229,0.024,60052.0,60051.0,1.1669759]
[1724839442425,0.024,60052.0,60051.0,0.3343509]
[1724839442426,0.01,60052.0,60051.0,0.3343509]
[1724839442635,0.01,60052.0,60051.0,1.0284259]
[1724839442876,0.021,60052.0,60051.0,1.3614759]
[1724839443081,0.01,60052.0,60051.0,0.0013009]
[1724839443379,0.18454383,60052.0,60051.0,0.0013009]
[1724839443582,0.10526074,60052.0,60051.0,0.0013009]
[1724839443712,0.01702183,60052.0,60051.0,0.0013009]
[1724839443907,0.01802183,60052.0,60051.0,0.0013009]
[1724839444115,0.17454383,60052.0,60051.0,0.0013009]
[1724839444323,0.50958783,60052.0,60051.0,0.0013009]
[1724839444778,0.50938756,60052.0,60051.0,0.0013009]
[1724839444978,0.00782156,60052.0,60051.0,0.0013009]
[1724839445133,0.51038756,60052.0,60051.0,0.0013009]
[1724839445541,0.85343156,60052.0,60051.0,0.0013009]
[1724839445732,0.86111926,60052.0,60051.0,0.0013009]
[1724839445937,1.25043156,60052.0,60051.0,0.0013009]
[1724839446159,0.92738756,60052.0,60051.0,0.0013009]
[1724839446477,1.27654461,60052.0,60051.0,0.0013009]
[1724839446694,1.28654461,60052.0,60051.0,0.0013009]
[1724839446984,1.47604461,60052.0,60051.0,0.0013009]
[1724839447180,2.47089761,60052.0,60051.0,0.0013009]
[1724839447382,2.30234597,60052.0,60051.0,0.0013009]
[1724839447945,2.31034597,60052.0,60051.0,0.0013009]
[1724839448372,2.31734597,60052.0,60051.0,0.0013009]
[1724839448592,0.80995661,60052.0,60051.0,0.0013009]
[1724839448761,0.79384356,60052.0,60051.0,0.0247295]
[1724839448948,0.63932156,60052.0,60051.0,0.0247295]
[1724839449146,1.47193156,60052.0,60051.0,0.0247295]
[1724839449353,1.91497556,60052.0,60051.0,0.0247295]
[1724839449570,1.24388756,60052.0,60051.0,0.0247295]
[1724839449783,1.55993156,60052.0,60051.0,0.0247295]
[1724839450240,1.24088756,60052.0,60051.0,0.0247295]
[1724839450445,1.6603364,60052.0,60051.0,0.0247295]
[1724839450660,0.3894,60046.0,60034.0,0.175592]
[1724839450880,0.16656,60039.0,60034.0,0.175591]
[1724839451082,0.1735717,60038.0,60034.0,0.00902]
[1724839451280,0.166567,60036.0,60034.0,0.00902]
[1724839451485,0.34011449,60035.0,60034.0,0.00902]
[1724839451633,0.50668349,60035.0,60034.0,0.00902]
[1724839451836,0.50634179,60035.0,60034.0,0.00902]
[1724839452058,0.53246054,60035.0,60034.0,0.00902]
[1724839452272,0.19932154,60035.0,60034.0,0.00902]
[1724839452898,0.03275254,60035.0,60034.0,0.00902]
[1724839453112,0.04275254,60035.0,60034.0,0.00902]
[1724839453318,0.53246054,60035.0,60034.0,0.00902]
[1724839453740,0.19932154,60035.0,60034.0,0.00902]
[1724839454118,0.03275254,60035.0,60034.0,0.00902]
[1724839454319,0.04675254,60035.0,60034.0,0.175592]
[1724839454474,0.04675254,60035.0,60034.0,0.00902]
[1724839454692,0.05775254,60035.0,60034.0,0.00902]
[1724839455074,1.55530224,60035.0,60034.0,0.00902]
[1724839455277,1.21216324,60035.0,60034.0,0.00902]
[1724839455605,1.10564179,60035.0,60034.0,0.00902]
[1724839455797,0.42023379,60035.0,60034.0,0.508736]
[1724839456028,0.02863379,60035.0,60034.0,0.508736]
[1724839456245,0.01663379,60035.0,60034.0,0.508736]
[1724839456415,0.01663379,60035.0,60034.0,0.84188]
[1724839456624,0.02963379,60035.0,60034.0,1.175024]
[1724839456824,0.023,60035.0,60034.0,1.175024]
[1724839457424,0.013,60035.0,60034.0,1.487524]
[1724839457662,0.025,60035.0,60034.0,1.487524]
[1724839457839,0.4123,60035.0,60034.0,0.00902]
[1724839458007,0.5858255,60035.0,60034.0,0.00902]
[1724839458215,0.5608255,60035.0,60034.0,0.00902]
[1724839458511,1.25422138,60035.0,60034.0,0.00902]
[1724839458716,0.59194338,60035.0,60034.0,0.00902]
[1724839458918,0.42137438,60035.0,60034.0,0.00902]
[1724839459116,0.0069565,60035.0,60034.0,0.00902]
[1724839459317,0.168569,60035.0,60034.0,0.00902]
[1724839459680,0.8418035,60035.0,60034.0,0.00902]
[1724839459923,0.8428035,60035.0,60034.0,0.00902]
[1724839460161,0.5096645,60035.0,60034.0,0.00902]
[1724839460828,0.96214171,60035.0,60034.0,0.00902]
[1724839461045,0.8428035,60035.0,60034.0,0.00902]
[1724839461277,1.1759425,60035.0,60034.0,0.00902]
[1724839461507,1.5859425,60035.0,60034.0,0.00902]
[1724839461732,1.6859425,60035.0,60034.0,0.00902]
[1724839461951,1.85449414,60035.0,60034.0,0.00902]
[1724839462382,1.6859425,60035.0,60034.0,0.00902]
[1724839462608,1.6829425,60035.0,60034.0,0.00902]
[1724839462819,1.6869425,60035.0,60034.0,0.00902]
[1724839463039,1.6919425,60035.0,60034.0,0.00902]
[1724839463480,1.6919425,60035.0,60031.0,0.0004]
[1724839463481,1.176042,60032.0,60031.0,0.0004]
[1724839463747,1.97932487,60032.0,60031.0,0.0004]
[1724839464025,1.95254872,60032.0,60031.0,0.0004]
[1724839464258,1.025867,60019.0,60011.0,0.0004]
[1724839464484,1.412367,60019.0,60011.0,0.0004]
[1724839464729,1.08588936,60019.0,60011.0,0.0004]
[1724839464974,1.08588936,60019.0,60011.0,0.167034]
[1724839464975,1.41911636,60019.0,60011.0,0.167034]
[1724839465188,1.08588936,60019.0,60012.0,0.166632]
[1724839465451,1.08588936,60019.0,60011.0,0.0004]
[1724839465452,1.41911636,60019.0,60011.0,0.0004]
[1724839465669,1.75234336,60019.0,60011.0,0.0004]
[1724839465892,1.41911636,60019.0,60011.0,0.0004]
[1724839466115,1.43311636,60019.0,60011.0,0.0004]
[1724839466394,1.78134336,60019.0,60011.0,0.0004]
[1724839466617,1.77534336,60019.0,60011.0,0.0004]
[1724839466852,1.78434336,60019.0,60011.0,0.0004]
[1724839467110,1.79234336,60019.0,60011.0,0.0004]
[1724839467364,1.91316037,60019.0,60011.0,0.0004]
[1724839467879,2.13688836,60012.0,60011.0,0.0004]
[1724839468365,2.57676109,60012.0,60011.0,0.0004]
[1724839468580,2.76831273,60012.0,60011.0,0.0004]
[1724839468824,3.10157873,60012.0,60011.0,0.0004]
[1724839469472,2.61376109,60012.0,60011.0,0.0004]
[1724839469690,2.29449509,60012.0,60011.0,0.0004]
[1724839469913,1.92322909,60012.0,60011.0,0.0004]
[1724839470163,1.20670573,60012.0,60011.0,0.0004]
[1724839470373,0.42990673,60012.0,60011.0,0.0004]
[1724839470591,0.02060673,60012.0,60011.0,0.0004]
[1724839471056,0.18723973,60012.0,60011.0,0.0004]
[1724839471579,0.18723973,60012.0,59996.0,0.517351]
[1724839471580,0.833442,59992.0,59980.0,0.3907]
[1724839471827,0.833442,59992.0,59973.0,0.00902]
[1724839471828,1.53707636,59992.0,59981.0,0.50540786]
[1724839472054,1.53707636,59992.0,59973.0,0.00902]
[1724839472055,1.54356765,59992.0,59973.0,0.51442786]
[1724839472274,1.54356765,59992.0,59973.0,0.00902]
[1724839472774,1.56656765,59992.0,59973.0,0.00902]
[1724839472977,1.56656765,59992.0,59975.0,0.333466]
[1724839472978,0.83993329,59992.0,59975.0,0.333466]
[1724839473129,0.02049129,59992.0,59985.0,0.3943]
[1724839473385,0.02049129,59992.0,59987.0,0.1981]
[1724839473501,0.02049129,59992.0,59991.0,0.167091]
[1724839473502,0.06063141,59992.0,59991.0,0.167091]
[1724839473997,0.06063141,59992.0,59991.0,0.0004]
[1724839474199,0.05414012,59992.0,59991.0,0.0004]
[1724839474405,0.04014012,59992.0,59991.0,0.167091]
[1724839474634,0.04014012,59992.0,59991.0,0.0004]
[1724839474635,0.21331941,59992.0,59991.0,0.0004]
[1724839474842,0.06063141,59992.0,59991.0,0.0004]
[1724839475050,0.21331941,59992.0,59991.0,0.0004]
[1724839475277,0.04163141,59992.0,59991.0,0.0004]
[1724839475446,0.03514012,59992.0,59991.0,0.833857]
[1724839475653,0.04014012,59992.0,59991.0,0.833857]
[1724839475932,0.04514012,59992.0,59991.0,0.500474]
[1724839476071,0.03114012,59992.0,59991.0,0.167091]
[1724839476274,0.02614012,59992.0,59991.0,0.0004]
[1724839476499,0.03663141,59992.0,59991.0,0.0004]
[1724839476705,0.20331941,59992.0,59991.0,0.0004]
[1724839476911,0.96796525,59992.0,59991.0,0.0004]
[1724839477234,1.24767341,59992.0,59991.0,0.0004]
[1724839477355,1.89855041,59992.0,59991.0,0.0004]
[1724839477561,1.90355041,59992.0,59991.0,0.0004]
[1724839477755,1.90855041,59992.0,59991.0,0.0004]
[1724839478037,2.07710205,59992.0,59991.0,0.0004]
[1724839478402,1.90955041,59992.0,59991.0,0.0004]
[1724839478603,1.91955041,59992.0,59991.0,0.0004]
[1724839478813,1.91955041,59992.0,59973.0,0.3425]
[1724839478814,0.843692,59974.0,59973.0,0.00902]
[1724839479119,1.5041612,59974.0,59973.0,0.00902]
[1724839479271,0.38787201,59974.0,59973.0,0.00902]
[1724839479470,0.00627201,59974.0,59973.0,0.175761]
[1724839479719,0.00627201,59974.0,59973.0,0.00902]
[1724839479851,0.3816,59984.0,59978.0,0.166725]
[1724839480031,0.2945,59985.0,59973.0,0.00902]
[1724839480032,0.1,59985.0,59973.0,0.00902]
[1724839480252,0.00627201,59983.0,59975.0,0.166734]
[1724839480467,0.3816,59989.0,59977.0,0.166729]
[1724839480468,0.00627201,59982.0,59977.0,0.166729]
[1724839480686,0.1,59988.0,59981.0,0.166717]
[1724839480909,0.034,59992.0,59991.0,0.500074]
[1724839480910,0.011,59992.0,59991.0,0.500074]
[1724839481112,0.00079994,59998.0,59990.0,0.333388]
[1724839481312,0.00079994,59998.0,59989.0,0.4118]
[1724839481313,0.00627201,59997.0,59987.0,0.166701]
[1724839481556,0.00627201,59997.0,59986.0,0.166704]
[1724839481557,0.05695956,59997.0,59986.0,0.166704]
[1724839481690,0.05695956,59997.0,59981.0,0.3921]
[1724839481691,0.00627201,59997.0,59985.0,0.166707]
[1724839481895,0.00627201,59997.0,59982.0,0.50540786]
[1724839482103,0.00627201,59997.0,59985.0,0.4042]
[1724839482311,0.014,59992.0,59991.0,0.157691]
[1724839482514,0.014,59992.0,59991.0,0.491074]
[1724839482738,0.014,59992.0,59991.0,0.824457]
[1724839483027,0.014,59992.0,59991.0,1.063274]
[1724839483271,0.014,59992.0,59991.0,1.396657]
[1724839483755,0.014,59992.0,59991.0,1.73004]
[1724839484395,0.02613708,59994.0,59991.0,1.73004]
[1724839484396,0.02613708,59994.0,59993.0,1.166802]
[1724839484843,0.02613708,59994.0,59993.0,1.904974]
[1724839485053,0.02613708,59994.0,59993.0,2.004974]
[1724839485696,0.000821,60001.0,59993.0,2.004974]
[1724839485697,0.000821,60001.0,60000.0,1.573465]
[1724839485910,0.000821,60001.0,60000.0,2.103498]
[1724839486048,0.000821,60001.0,60000.0,2.89708836]
[1724839486252,0.00079994,60019.0,60018.0,1.917548]
[1724839486504,0.00079994,60019.0,60018.0,1.584315]
[1724839487123,0.00079994,60030.0,60029.0,1.166102]
[1724839487383,0.00079994,60031.0,60030.0,0.844115]
[1724839487547,0.00079994,60031.0,60030.0,1.177281]
[1724839487797,0.00079994,60031.0,60030.0,1.510447]
[1724839488020,0.50540786,60051.0,60034.0,0.83286]
[1724839488021,0.00079994,60042.0,60034.0,0.83286]
[1724839488202,0.00079994,60042.0,60034.0,1.166004]
[1724839488358,0.00079994,60042.0,60034.0,0.83286]
[1724839489865,0.00182,60035.0,60034.0,0.84186]
[1724839490141,0.00182,60035.0,60034.0,1.175004]
[1724839490314,0.00082,60035.0,60034.0,1.656704]
[1724839490510,0.00182,60035.0,60034.0,1.998848]
[1724839490738,0.00182,60035.0,60034.0,1.665704]
[1724839490948,0.00282,60035.0,60034.0,1.675704]
[1724839491316,0.00282,60035.0,60034.0,2.008848]
[1724839491496,0.00282,60035.0,60034.0,2.193748]
[1724839491716,0.00082,60035.0,60034.0,2.202748]
[1724839491938,0.229021,60052.0,60051.0,1.165675]
[1724839492150,0.224021,60052.0,60051.0,1.165675]
[1724839492392,0.224021,60052.0,60051.0,0.832625]
[1724839492863,0.23047992,60052.0,60051.0,1.165675]
[1724839493084,0.224021,60052.0,60051.0,1.165675]
[1724839493518,0.224021,60052.0,60051.0,1.753775]
[1724839493735,0.224021,60052.0,60051.0,1.763775]
[1724839493736,0.225021,60052.0,60051.0,1.763775]
[1724839494395,0.225021,60052.0,60051.0,1.567475]
[1724839494627,0.225021,60052.0,60051.0,1.175675]
[1724839494850,0.225021,60052.0,60051.0,1.186675]
[1724839495054,0.224021,60052.0,60051.0,1.165675]
[1724839495461,0.225021,60052.0,60051.0,0.520575]
[1724839495879,0.225021,60052.0,60051.0,0.512575]
[1724839496080,0.225021,60052.0,60051.0,0.179525]
[1724839496288,0.23158778,60052.0,60051.0,0.179525]
[1724839496503,0.23058778,60052.0,60051.0,0.166525]
[1724839496720,0.23158778,60052.0,60051.0,0.845625]
[1724839496930,0.225021,60052.0,60051.0,0.179525]
[1724839497140,0.23158778,60052.0,60051.0,0.013]
[1724839497397,0.23158778,60052.0,60051.0,0.189525]
[1724839497562,0.23158778,60052.0,60051.0,0.179525]
[1724839497740,0.23158778,60052.0,60051.0,0.512575]
[1724839497946,0.23158778,60052.0,60051.0,0.519575]
[1724839498156,0.23058778,60052.0,60051.0,0.499575]
[1724839498351,0.23058778,60052.0,60051.0,0.166525]
[1724839498641,0.23158778,60052.0,60051.0,0.176525]
[1724839498797,0.23158778,60052.0,60051.0,0.01]
[1724839498994,0.23058778,60052.0,60051.0,0.166525]
[1724839499195,0.23058778,60052.0,60051.0,0.499575]
[1724839499398,0.23058778,60052.0,60051.0,0.501575]
[1724839499779,0.23058778,60052.0,60051.0,0.002]
[1724839499980,0.91165378,60052.0,60051.0,0.002]
[1724839500208,1.65839778,60052.0,60051.0,0.002]
[1724839500444,1.75839778,60052.0,60051.0,0.002]
[1724839501127,0.90278778,60052.0,60051.0,0.002]
[1724839501340,0.166529,60050.0,60043.0,0.333091]
[1724839501556,0.166526,60051.0,60045.0,0.166539]
[1724839501806,0.166526,60051.0,59998.0,0.13829723]
[1724839501807,1.295787,60052.0,60051.0,0.002]
[1724839502055,1.299787,60052.0,60051.0,0.003]
[1724839502268,0.796221,60052.0,60046.0,0.333073]
[1724839502492,0.224021,60052.0,60051.0,0.832625]
[1724839502696,0.224021,60052.0,60051.0,0.822625]
[1724839503639,0.224021,60052.0,60051.0,0.489575]
[1724839503997,0.224021,60052.0,60051.0,0.483575]
[1724839504199,0.224021,60052.0,60051.0,0.816625]
[1724839504405,0.224021,60052.0,60051.0,1.565375]
[1724839504793,0.224021,60052.0,60051.0,1.998425]
[1724839505221,0.231021,60052.0,60051.0,1.998425]
[1724839505399,0.231021,60052.0,60051.0,2.03738543]
[1724839505581,0.229021,60052.0,60051.0,2.03738543]
[1724839505782,0.229021,60052.0,60051.0,2.56673543]
[1724839505992,0.030021,60052.0,60051.0,2.9619362]
[1724839506195,0.00079994,60073.0,60072.0,1.165265]
[1724839506411,0.0082,60080.0,60072.0,1.165265]
[1724839506412,0.3918,60075.0,60072.0,0.04730415]
[1724839506713,0.3918,60075.0,60064.0,0.332974]
[1724839506714,0.349366,60072.0,60064.0,0.332974]
[1724839506914,0.349366,60072.0,60061.0,0.332991]
[1724839506915,0.1829,60072.0,60061.0,0.332991]
[1724839507318,0.1829,60072.0,60058.0,0.333008]
[1724839507515,0.166474,60070.0,60054.0,0.4121]
[1724839507693,0.166476,60069.0,60064.0,0.166487]
[1724839507899,0.00651047,60071.0,60065.0,0.166485]
[1724839508114,0.349367,60072.0,60062.0,0.332984]
[1724839508317,0.00651047,60070.0,60069.0,0.166475]
[1724839508972,0.1829,60072.0,60067.0,0.33296]
[1724839509175,0.00660217,60070.0,60069.0,0.166474]
[1724839509417,0.18369994,60072.0,60068.0,0.166477]
[1724839509418,0.000114,60069.0,60068.0,0.166477]
[1724839509624,0.000114,60069.0,60068.0,0.499432]
[1724839509843,0.000114,60069.0,60068.0,0.166477]
[1724839510047,0.000114,60069.0,60068.0,0.499432]
[1724839510256,0.00671617,60069.0,60068.0,1.222187]
[1724839510474,0.000114,60069.0,60068.0,1.555142]
[1724839511725,0.000114,60069.0,60068.0,1.888097]
[1724839511915,0.000114,60069.0,60068.0,1.896097]
[1724839512097,0.000114,60069.0,60068.0,1.908097]
[1724839512423,0.000114,60069.0,60068.0,1.900097]
[1724839512763,0.000114,60069.0,60068.0,1.95741489]
[1724839513135,0.000114,60069.0,60068.0,2.05741489]
[1724839513322,0.000114,60069.0,60068.0,2.014097]
[1724839513641,0.000114,60069.0,60068.0,2.042097]
[1724839513842,0.000114,60069.0,60068.0,2.030097]
[1724839514056,0.000114,60069.0,60068.0,2.011097]
[1724839514254,0.000114,60069.0,60068.0,1.988097]
[1724839514455,0.000114,60069.0,60068.0,2.025097]
[1724839515091,0.000114,60069.0,60068.0,2.002097]
[1724839515308,0.000114,60069.0,60068.0,1.683142]
[1724839515541,0.000114,60069.0,60068.0,2.002097]
[1724839515721,0.000114,60069.0,60068.0,1.988097]
[1724839515922,0.02609892,60076.0,60075.0,0.832292]
[1724839516163,0.02609892,60076.0,60075.0,1.165209]
[1724839517220,0.02609892,60076.0,60075.0,1.179209]
[1724839518001,0.02609892,60076.0,60075.0,0.180458]
[1724839518207,0.03270109,60076.0,60075.0,0.194458]
[1724839518646,0.03270109,60076.0,60075.0,0.860292]
[1724839519075,0.1845,60077.0,60076.0,0.499366]
[1724839519549,0.19119873,60077.0,60076.0,0.499366]
[1724839519755,0.19119873,60077.0,60075.0,0.009]
[1724839520001,1.553688,60076.0,60075.0,0.009]
[1724839520247,0.1854,60057.0,60042.0,0.395]
[1724839520500,0.1854,60057.0,60045.0,0.67194786]
[1724839520755,0.166523,60052.0,60035.0,0.04796579]
[1724839520977,0.39519873,60056.0,60035.0,0.04796579]
[1724839521218,0.3885,60056.0,60036.0,0.00333062]
[1724839521449,0.00669873,60055.0,60054.0,0.166516]
[1724839521670,0.00669873,60055.0,60054.0,0.832582]
[1724839522114,0.00669873,60055.0,60054.0,1.165615]
[1724839522343,0.3885,60062.0,60061.0,0.832485]
[1724839522561,0.1854,60063.0,60062.0,0.828472]
[1724839522821,0.1854,60063.0,60062.0,0.495483]
[1724839523294,0.1854,60063.0,60062.0,0.828472]
[1724839523750,0.1854,60063.0,60062.0,0.495483]
[1724839523983,0.1854,60063.0,60054.0,0.002]
[1724839524224,0.166512,60056.0,60051.0,0.166523]
[1724839524519,0.19260733,60061.0,60056.0,0.166509]
[1724839524760,0.333003,60060.0,60053.0,0.166516]
[1724839524990,0.02610933,60061.0,60055.0,0.166512]
[1724839525220,0.02610933,60061.0,60051.0,0.333047]
[1724839525446,0.45880063,60060.0,60052.0,0.16652]
[1724839525662,0.166515,60055.0,60049.0,0.333061]
[1724839525877,0.166509,60057.0,60052.0,0.16652]
[1724839526102,0.166509,60057.0,60053.0,0.001]
[1724839526328,0.02611207,60056.0,60052.0,0.16652]
[1724839526575,0.02611207,60056.0,60051.0,0.001]
[1724839526576,0.499566,60052.0,60051.0,0.001]
[1724839526819,1.094666,60052.0,60051.0,0.001]
[1724839527287,0.166538,60046.0,60031.0,0.50540786]
[1724839527530,1.094715,60046.0,60035.0,0.166569]
[1724839527766,1.094715,60046.0,60039.0,0.166557]
[1724839527986,1.45390839,60046.0,60031.0,0.50540786]
[1724839528233,1.45390839,60046.0,60035.0,0.166568]
[1724839528462,1.46190839,60046.0,60030.0,0.333161]
[1724839528708,1.46190839,60046.0,60036.0,0.166566]
[1724839528941,1.46490839,60046.0,60045.0,0.001902]
[1724839529382,1.47290839,60046.0,60045.0,0.001902]
[1724839529604,1.47290839,60046.0,60025.0,0.00053236]
[1724839529605,0.01,60039.0,60011.0,0.33347059]
[1724839529831,0.1666,60024.0,60023.0,0.50540786]
[1724839530047,0.166597,60025.0,60015.0,0.42972427]
[1724839530253,0.166602,60024.0,60016.0,0.23897645]
[1724839530466,0.17320231,60024.0,60017.0,0.166619]
[1724839530672,0.17320231,60024.0,60016.0,0.07235645]
[1724839530673,0.00660031,60024.0,60020.0,0.16661]
[1724839531111,0.166596,60026.0,60019.0,0.166613]
[1724839531314,0.333173,60029.0,60021.0,0.166607]
[1724839531536,0.924658,60032.0,60016.0,0.333243]
[1724839531537,0.00660031,60023.0,60016.0,0.333243]
[1724839531737,0.001,60024.0,60019.0,0.166612]
[1724839532183,0.333167,60030.0,60021.0,0.166606]
[1724839532401,0.333219,60021.0,60011.0,0.00020059]
[1724839532635,0.83303,60022.0,60021.0,0.01]
[1724839533264,0.499816,60022.0,60021.0,0.01]
[1724839534312,0.52594288,60022.0,60021.0,0.01]
[1724839534519,0.52594288,60022.0,60011.0,0.16683559]
[1724839534520,0.02612688,60022.0,60011.0,0.00020059]
[1724839534718,0.02712688,60022.0,60021.0,0.007]
[1724839535166,0.02712688,60022.0,60021.0,0.173608]
[1724839535364,0.02712688,60022.0,60021.0,0.499824]
[1724839535547,0.02812688,60022.0,60021.0,0.509824]
[1724839536026,0.02812688,60022.0,60021.0,0.01]
[1724839536198,0.02812688,60022.0,60021.0,0.176608]
[1724839536424,0.02812688,60022.0,60021.0,0.509824]
[1724839536656,0.02812688,60022.0,60021.0,0.84304]
[1724839536767,0.02812688,60022.0,60021.0,0.01]
[1724839536973,0.02812688,60022.0,60021.0,0.176608]
[1724839537169,0.02812688,60022.0,60021.0,0.01]
[1724839537396,0.52794288,60022.0,60021.0,0.01]
[1724839537676,1.27305388,60022.0,60021.0,0.01]
[1724839538137,1.79896488,60022.0,60021.0,0.01]
[1724839538341,1.46575388,60022.0,60021.0,0.01]
[1724839538905,1.94654027,60022.0,60021.0,0.01]
[1724839539282,1.772838,60022.0,60021.0,0.01]
[1724839539509,1.900838,60022.0,60021.0,0.01]
[1724839539785,1.905838,60022.0,60021.0,0.01]
[1724839540471,1.22084,60021.0,60020.0,0.000902]
[1724839540693,1.80324865,60021.0,60020.0,0.000902]
[1724839540920,1.677056,60021.0,60020.0,0.000902]
[1724839541156,0.654408,60021.0,60020.0,0.000902]
[1724839541375,1.32084,60021.0,60020.0,0.000902]
[1724839541827,0.656408,60021.0,60020.0,0.010902]
[1724839542046,0.3898,60021.0,60020.0,0.510735]
[1724839542300,0.002,60021.0,60020.0,0.510735]
[1724839542778,0.001,60021.0,60020.0,0.510735]
[1724839543011,0.001,60021.0,60020.0,0.843957]
[1724839543242,0.001,60021.0,60020.0,0.510735]
[1724839543494,0.1927,60022.0,60021.0,0.499824]
[1724839543739,0.1927,60022.0,60021.0,0.488824]
[1724839544231,0.333149,60034.0,60029.0,0.166586]
[1724839544232,0.1965,60030.0,60029.0,0.166586]
[1724839544476,0.3782,60034.0,60033.0,0.166575]
[1724839544723,0.3782,60034.0,60033.0,0.151575]
[1724839544963,0.40412123,60034.0,60033.0,0.151575]
[1724839545192,0.166575,60033.0,60020.0,0.000902]
[1724839545444,0.005,60022.0,60021.0,0.84204]
[1724839545686,0.001,60022.0,60021.0,0.84204]
[1724839546381,0.0271228,60022.0,60021.0,1.175256]